bitfinex-derivatives/quotes_SOLF0:USTF0_20250919
["timestamp","ask_amount","ask_price","bid_price","bid_amount"]
[1758283412695,7.17,241.43,241.4,7.17]
[1758283412999,65.1181,241.47,241.38,100.66]
[1758283413297,7.17,241.46,241.38,100.66]
[1758283413495,7.17,241.46,241.37,7.17]
[1758283413699,7.17,241.46,241.38,26.06]
[1758283414796,3.7261,241.42,241.38,26.06]
[1758283415002,3.7261,241.42,241.39,7.17]
[1758283415199,3.7261,241.42,241.38,26.06]
[1758283415396,3.7261,241.42,241.39,7.17]
[1758283415999,3.7257,241.44,241.39,7.17]
[1758283416902,3.7257,241.44,241.38,26.06]
[1758283417204,3.7257,241.44,241.39,7.17]
[1758283418300,3.7257,241.44,241.38,26.06]
[1758283418606,3.7257,241.44,241.38,33.23]
[1758283419198,3.7254,241.46,241.39,7.17]
[1758283420697,3.7256,241.45,241.39,7.17]
[1758283420901,3.7256,241.45,241.39,10.8963]
[1758283422304,3.7256,241.45,241.39,101.2363]
[1758283424804,7.17,241.47,241.4,7.17]
[1758283425004,7.17,241.5,241.41,7.17]
[1758283426900,3.7254,241.46,241.41,7.17]
[1758283427705,3.7254,241.46,241.4,3.7262]
[1758283428308,3.7254,241.46,241.41,7.17]
[1758283428712,3.7254,241.46,241.4,3.7262]
[1758283429006,3.7254,241.46,241.41,7.17]
[1758283429214,3.7251,241.48,241.41,7.17]
[1758283430811,0.02965696,241.47,241.42,3.7258]
[1758283431206,0.02965696,241.47,241.43,7.17]
[1758283431605,0.02965696,241.47,241.43,3.7257]
[1758283431803,0.02965696,241.47,241.41,1.76157763]
[1758283432008,0.02965696,241.47,241.42,7.17]
[1758283432514,0.02965696,241.47,241.45,7.17]
[1758283432903,0.02965696,241.47,241.44,3.7255]
[1758283433911,0.02965696,241.47,241.45,7.17]
[1758283434312,0.02965696,241.47,241.44,3.7255]
[1758283434509,0.02965696,241.47,241.45,7.17]
[1758283435207,0.02965696,241.47,241.44,3.7255]
[1758283435405,0.02965696,241.47,241.45,7.17]
[1758283435816,0.02965696,241.47,241.45,1.12656266]
[1758283436015,0.02965696,241.47,241.46,7.17]
[1758283438815,0.02965696,241.47,241.46,107.77]
[1758283442922,0.02965696,241.47,241.46,108.89656266]
[1758283443227,0.02965696,241.47,241.46,107.77]
[1758283443421,0.02965696,241.47,241.46,108.89656266]
[1758283452026,0.02965696,241.47,241.46,8.29656266]
[1758283452227,0.02965696,241.47,241.46,108.87656266]
[1758283455431,0.02965696,241.47,241.46,107.75]
[1758283456236,0.02965696,241.47,241.46,7.17]
[1758283456434,0.02965696,241.47,241.46,107.75]
[1758283457433,0.02965696,241.47,241.46,108.87656266]
[1758283464439,0.02965696,241.47,241.46,107.75]
[1758283466443,1.12656266,241.56,241.47,7.0]
[1758283466640,1.12656266,241.56,241.49,7.0]
[1758283466841,1.12656266,241.56,241.5,100.56]
[1758283467042,7.17,241.55,241.49,10.7248]
[1758283467244,7.17,241.52,241.46,7.0]
[1758283467439,1.12656266,241.52,241.47,70.68]
[1758283467643,8.29656266,241.52,241.5,7.03043204]
[1758283467838,7.17,241.52,241.51,100.56]
[1758283468053,8.29656266,241.54,241.51,107.56]
[1758283468539,7.17,241.54,241.51,107.45]
[1758283470147,7.17,241.54,241.51,100.56]
[1758283470346,7.17,241.54,241.51,107.45]
[1758283470948,3.723,241.61,241.52,6.89]
[1758283471143,7.06,241.58,241.5,6.92043204]
[1758283471343,7.06,241.58,241.5,6.89]
[1758283471545,8.18656266,241.58,241.51,85.6]
[1758283471745,8.18656266,241.58,241.52,0.02701834]
[1758283472045,8.18656266,241.58,241.52,3.75131834]
[1758283473845,7.06,241.57,241.53,107.57]
[1758283474044,7.06,241.57,241.54,100.68]
[1758283474245,1.12656266,241.58,241.54,100.68]
[1758283474552,8.18656266,241.58,241.55,100.68]
[1758283474850,7.06,241.57,241.55,100.68]
[1758283475748,7.06,241.57,241.56,100.66]
[1758283476243,1.12656266,241.58,241.53,6.89]
[1758283476547,7.06,241.57,241.56,100.66]
[1758283477347,1.12656266,241.58,241.52,0.02701834]
[1758283477543,7.06,241.57,241.56,100.66]
[1758283477953,7.06,241.57,241.48,4.63133619]
[1758283478139,57.9127,241.62,241.49,100.66]
[1758283478140,7.06,241.59,241.49,100.66]
[1758283478344,7.06,241.59,241.54,0.02845092]
[1758283478649,8.18656266,241.55,241.54,100.70845092]
[1758283479148,8.60656266,241.55,241.54,100.70845092]
[1758283479348,8.18656266,241.55,241.54,100.70845092]
[1758283482151,8.60656266,241.55,241.54,100.70845092]
[1758283483653,7.48,241.55,241.54,100.68845092]
[1758283484354,7.06,241.55,241.54,100.68845092]
[1758283489450,7.06,241.55,241.54,100.62845092]
[1758283491151,3.7239,241.56,241.54,100.62845092]
[1758283491654,7.06,241.55,241.54,100.62845092]
[1758283495456,4.85046266,241.56,241.54,100.62845092]
[1758283495852,10.7839,241.56,241.54,100.62845092]
[1758283496554,10.7839,241.56,241.54,107.51845092]
[1758283497660,10.7839,241.56,241.55,100.56]
[1758283500054,10.7839,241.56,241.54,0.02845092]
[1758283500259,6.55,241.55,241.54,0.02845092]
[1758283500461,6.55,241.55,241.54,34.02845092]
[1758283501463,6.55,241.55,241.54,0.02845092]
[1758283501760,6.97,241.55,241.54,0.02845092]
[1758283502260,6.55,241.55,241.54,0.02845092]
[1758283514174,6.97,241.55,241.54,0.02845092]
[1758283514376,6.55,241.54,241.44,49.12]
[1758283514776,3.7248,241.5,241.45,7.06]
[1758283515174,3.7248,241.5,241.44,42.06]
[1758283515575,3.7248,241.5,241.45,7.06]
[1758283516079,3.725,241.49,241.46,7.06]
[1758283516378,3.725,241.49,241.45,100.58]
[1758283516578,3.725,241.49,241.46,7.06]
[1758283517980,3.725,241.49,241.45,100.58]
[1758283518181,3.725,241.49,241.46,7.06]
[1758283518475,3.725,241.49,241.45,100.58]
[1758283518875,3.725,241.49,241.46,7.06]
[1758283519075,3.725,241.49,241.46,100.58]
[1758283519384,3.725,241.49,241.47,7.06]
[1758283519683,3.725,241.49,241.46,100.58]
[1758283519880,3.725,241.49,241.47,7.06]
[1758283520280,10.2745,241.52,241.46,100.58]
[1758283520481,10.2745,241.52,241.47,7.06]
[1758283520884,10.2745,241.52,241.46,100.58]
[1758283521380,10.2745,241.52,241.47,7.06]
[1758283521684,10.2745,241.52,241.46,100.58]
[1758283521887,10.2745,241.52,241.47,7.06]
[1758283522075,10.2745,241.52,241.46,100.58]
[1758283522579,3.7245,241.52,241.47,7.06]
[1758283522787,3.7246,241.51,241.46,107.64]
[1758283523081,57.9248,241.57,241.47,100.58]
[1758283523286,6.55,241.56,241.47,100.58]
[1758283523689,57.9248,241.57,241.47,100.58]
[1758283524382,57.9248,241.57,241.46,107.64]
[1758283524779,3.7247,241.51,241.46,7.06]
[1758283525086,3.7247,241.51,241.46,100.58]
[1758283525480,3.7247,241.51,241.47,7.06]
[1758283525681,3.7247,241.51,241.46,100.58]
[1758283526083,3.7247,241.51,241.47,7.06]
[1758283526283,3.7247,241.51,241.46,100.58]
[1758283526487,3.7247,241.51,241.47,7.06]
[1758283526683,3.7247,241.51,241.46,100.58]
[1758283527277,3.7247,241.51,241.47,7.06]
[1758283527480,6.55,241.53,241.47,7.06]
[1758283527481,10.2743,241.53,241.47,7.06]
[1758283527685,3.7243,241.53,241.47,7.06]
[1758283528590,10.3743,241.53,241.49,7.05]
[1758283529587,10.3743,241.53,241.48,100.58]
[1758283529786,10.3743,241.53,241.49,7.05]
[1758283530184,3.7243,241.53,241.48,100.58]
[1758283530782,3.7243,241.53,241.49,7.05]
[1758283531086,3.7243,241.53,241.48,100.58]
[1758283531482,10.3743,241.53,241.48,100.58]
[1758283533197,10.3743,241.53,241.49,7.05]
[1758283533398,10.3743,241.53,241.48,100.58]
[1758283534198,3.7243,241.53,241.48,100.58]
[1758283534386,3.7243,241.53,241.49,7.05]
[1758283534592,3.7243,241.53,241.48,100.58]
[1758283534795,3.7243,241.53,241.49,7.05]
[1758283534990,3.7243,241.53,241.48,100.58]
[1758283535189,6.65,241.56,241.49,7.05]
[1758283535190,3.7242,241.54,241.49,7.05]
[1758283538088,3.7244,241.52,241.48,100.58]
[1758283538293,57.9201,241.59,241.44,4.63133619]
[1758283538294,6.65,241.53,241.44,7.05]
[1758283538490,6.65,241.53,241.46,7.05]
[1758283538691,3.7242,241.54,241.46,10.7752]
[1758283538891,6.65,241.61,241.47,13.44118988]
[1758283539188,6.65,241.61,241.48,7.05]
[1758283539393,6.65,241.59,241.49,28.96]
[1758283539594,6.65,241.59,241.5,7.05]
[1758283539795,6.65,241.59,241.5,56.91]
[1758283540294,3.7242,241.54,241.51,7.05]
[1758283540598,6.65,241.53,241.51,7.05]
[1758283541097,6.65,241.61,241.51,7.05]
[1758283543894,3.7238,241.56,241.5,87.36]
[1758283544498,3.7238,241.56,241.51,7.05]
[1758283544699,3.7238,241.56,241.5,87.36]
[1758283544900,3.7238,241.56,241.51,7.05]
[1758283545098,3.7238,241.56,241.5,87.36]
[1758283545895,3.7238,241.56,241.51,7.05]
[1758283546700,10.3738,241.56,241.51,7.05]
[1758283547102,3.7238,241.56,241.51,7.05]
[1758283547599,3.7238,241.56,241.5,87.36]
[1758283548604,3.7238,241.56,241.51,7.05]
[1758283552606,3.7238,241.56,241.5,91.0846]
[1758283553306,3.7238,241.56,241.51,7.05]
[1758283554806,6.65,241.62,241.52,7.05]
[1758283556009,3.7232,241.6,241.54,7.05]
[1758283557108,3.7232,241.6,241.54,3.724]
[1758283557311,3.7232,241.6,241.55,6.77]
[1758283557611,6.8,241.61,241.55,10.4938]
[1758283557905,3.7229,241.62,241.56,6.77]
[1758283558712,3.7229,241.62,241.56,18.96213387]
[1758283561014,3.7232,241.6,241.57,6.74]
[1758283561313,64.506,241.65,241.54,6.74]
[1758283561514,57.906,241.65,241.55,100.8]
[1758283562014,6.6,241.64,241.55,100.8]
[1758283562208,57.906,241.65,241.55,100.8]
[1758283562414,6.6,241.64,241.55,100.8]
[1758283562816,6.6,241.64,241.56,6.74]
[1758283563716,3.7235,241.58,241.56,6.74]
[1758283564415,3.7235,241.58,241.54,100.76]
[1758283565017,3.7235,241.58,241.55,6.74]
[1758283565518,3.7235,241.58,241.54,100.76]
[1758283566118,3.7235,241.58,241.55,6.74]
[1758283566314,3.7235,241.58,241.54,100.76]
[1758283566520,3.7232,241.6,241.55,6.74]
[1758283566716,10.3232,241.6,241.55,6.74]
[1758283567016,10.3232,241.6,241.54,100.76]
[1758283567921,10.3232,241.6,241.55,6.74]
[1758283568116,6.6,241.59,241.57,6.74]
[1758283571020,3.7234,241.59,241.54,19.04610035]
[1758283571325,10.3234,241.59,241.55,6.74]
[1758283572123,10.3234,241.59,241.54,93.88610035]
[1758283572824,10.3234,241.59,241.55,6.74]
[1758283573619,10.3234,241.59,241.54,93.88610035]
[1758283573819,10.3234,241.59,241.55,6.74]
[1758283574030,10.3234,241.59,241.54,93.88610035]
[1758283574230,10.3234,241.59,241.55,6.74]
[1758283574430,6.6,241.58,241.55,6.74]
[1758283575129,6.6,241.58,241.54,81.58]
[1758283575529,3.7234,241.59,241.54,81.58]
[1758283575830,10.3234,241.59,241.55,6.74]
[1758283576229,10.3234,241.59,241.53,3.7241]
[1758283576531,10.3234,241.59,241.55,6.74]
[1758283576830,3.7236,241.58,241.54,63.5]
[1758283577027,10.3236,241.58,241.55,6.74]
[1758283577331,6.6,241.57,241.46,4.63133619]
[1758283577529,1.12571118,241.58,241.47,107.44]
[1758283577836,6.6,241.57,241.48,6.74]
[1758283578023,1.12571118,241.55,241.46,6.74]
[1758283578228,6.6,241.54,241.46,19.46117907]
[1758283578437,6.6,241.52,241.46,19.46117907]
[1758283578733,6.6,241.52,241.46,120.18117907]
[1758283579631,6.6,241.52,241.46,19.46117907]
[1758283579933,3.7246,241.51,241.46,120.16117907]
[1758283580433,4.85001118,241.53,241.47,6.74]
[1758283581029,6.6,241.54,241.47,6.74]
[1758283582032,6.6,241.54,241.48,3.725]
[1758283582437,10.3236,241.58,241.49,1.12571118]
[1758283582734,10.3236,241.58,241.5,6.74]
[1758283583136,10.3236,241.58,241.52,6.74]
[1758283583433,6.6,241.58,241.53,100.74]
[1758283583825,6.6,241.58,241.54,6.74]
[1758283584225,6.6,241.58,241.53,100.74]
[1758283585034,3.7232,241.6,241.54,6.74]
[1758283587633,6.6,241.62,241.54,10.464]
[1758283588233,6.6,241.62,241.56,6.74]
[1758283589839,6.6,241.62,241.56,10.4636]
[1758283593634,3.7226,241.64,241.58,3.7235]
[1758283594438,7.15,241.66,241.59,6.69]
[1758283594741,10.8722,241.67,241.6,111.0731]
[1758283598840,3.7218,241.69,241.62,6.69]
[1758283599054,1.12571118,241.75,241.67,6.69]
[1758283599243,1.12571118,241.75,241.68,100.66]
[1758283599448,3.7218,241.7,241.62,6.69]
[1758283599744,10.8718,241.7,241.63,22.96]
[1758283600044,3.7219,241.68,241.62,6.69]
[1758283600240,3.7219,241.68,241.63,61.94]
[1758283600435,10.8719,241.68,241.64,6.69]
[1758283600638,10.8719,241.68,241.63,61.94]
[1758283601036,10.8719,241.68,241.64,6.69]
[1758283603541,57.8914,241.71,241.63,81.16]
[1758283603737,7.15,241.69,241.63,81.16]
[1758283604848,3.7224,241.66,241.63,81.16]
[1758283605050,3.7224,241.66,241.63,87.85]
[1758283605239,7.15,241.69,241.63,81.16]
[1758283605444,7.15,241.69,241.62,6.69]
[1758283605643,3.722,241.68,241.63,94.8]
[1758283606042,3.722,241.68,241.64,6.69]
[1758283606246,10.872,241.68,241.6,4.84871118]
[1758283606451,10.872,241.68,241.62,6.69]
[1758283610554,7.15,241.67,241.64,6.69]
[1758283611153,3.7223,241.66,241.6,1.12571118]
[1758283611350,7.15,241.65,241.61,67.37]
[1758283611550,7.15,241.65,241.62,6.69]
[1758283611751,7.15,241.65,241.63,6.69]
[1758283612151,3.7223,241.66,241.63,6.69]
[1758283612456,10.8723,241.66,241.63,6.69]
[1758283612854,10.8723,241.66,241.63,107.37]
[1758283613254,10.8723,241.66,241.63,107.35]
[1758283613955,10.8723,241.66,241.64,6.69]
[1758283614256,10.8723,241.66,241.63,100.66]
[1758283614453,10.8723,241.66,241.63,107.35]
[1758283614757,10.8723,241.66,241.63,6.69]
[1758283615058,10.8723,241.66,241.63,17.02]
[1758283615253,10.8723,241.66,241.64,6.69]
[1758283615759,3.7223,241.66,241.64,6.69]
[1758283616160,3.7223,241.66,241.63,48.5]
[1758283616562,3.722,241.68,241.63,48.5]
[1758283616763,10.872,241.68,241.63,48.5]
[1758283616964,10.872,241.68,241.64,6.69]
[1758283617160,10.872,241.68,241.64,7.08]
[1758283617561,4.84731118,241.7,241.63,48.5]
[1758283617764,4.84731118,241.7,241.64,7.08]
[1758283618062,3.7216,241.7,241.64,7.08]
[1758283619763,3.7219,241.69,241.64,7.08]
[1758283620360,3.7219,241.69,241.63,48.5]
[1758283620860,3.7219,241.69,241.63,55.06]
[1758283622362,6.7,241.67,241.64,6.56]
[1758283622561,6.7,241.67,241.63,48.5]
[1758283622763,10.422,241.68,241.64,6.56]
[1758283622961,3.722,241.68,241.64,6.56]
[1758283623265,3.7217,241.7,241.64,6.56]
[1758283624265,3.7213,241.73,241.64,6.56]
[1758283624760,3.7214,241.72,241.65,6.56]
[1758283624960,6.7,241.72,241.66,100.86]
[1758283625872,3.7216,241.71,241.66,100.86]
[1758283626168,10.4216,241.71,241.67,6.56]
[1758283626372,6.7,241.7,241.67,6.56]
[1758283626672,3.7211,241.74,241.67,6.56]
[1758283627967,3.7211,241.74,241.68,6.56]
[1758283629669,3.7211,241.74,241.66,100.86]
[1758283629670,3.7206,241.77,241.69,3.7217]
[1758283629877,3.7206,241.77,241.7,6.56]
[1758283630074,6.7,241.77,241.71,100.98]
[1758283630976,10.4207,241.77,241.7,6.56]
[1758283631178,10.4207,241.77,241.71,100.98]
[1758283632480,10.4207,241.77,241.7,6.56]
[1758283632676,10.4207,241.77,241.71,101.06]
[1758283635577,6.7,241.77,241.72,6.56]
[1758283635781,6.7,241.87,241.72,6.56]
[1758283635977,6.7,241.87,241.74,6.56]
[1758283636178,3.7193,241.86,241.74,6.56]
[1758283636373,6.7,241.85,241.74,6.56]
[1758283636585,0.02773658,241.82,241.74,6.56]
[1758283636880,0.02773658,241.82,241.74,3.7209]
[1758283637080,0.02773658,241.82,241.75,6.56]
[1758283637482,0.02773658,241.82,241.76,43.56]
[1758283637984,0.02773658,241.82,241.75,6.56]
[1758283637985,3.7199,241.81,241.75,6.56]
[1758283638178,3.7199,241.81,241.73,1.88345021]
[1758283638179,10.4199,241.81,241.77,6.56]
[1758283638579,10.4199,241.81,241.76,74.74]
[1758283639078,10.4199,241.81,241.77,100.96]
[1758283639079,3.7202,241.79,241.77,100.96]
[1758283639278,0.02773658,241.82,241.71,5.60495021]
[1758283639279,0.02773658,241.82,241.71,1.88345021]
[1758283639586,6.7,241.81,241.72,6.56]
[1758283639781,57.8581,241.85,241.72,86.42]
[1758283639782,6.7,241.78,241.72,86.42]
[1758283640284,10.4208,241.76,241.72,6.56]
[1758283640486,10.4208,241.76,241.72,107.56]
[1758283640784,6.7,241.77,241.7,12.25081638]
[1758283640985,10.4213,241.73,241.7,12.25081638]
[1758283641186,10.4213,241.73,241.69,100.98]
[1758283641488,10.4213,241.73,241.69,107.54]
[1758283641689,57.8746,241.78,241.69,6.56]
[1758283641690,10.4215,241.72,241.69,6.56]
[1758283641878,6.7,241.71,241.69,101.0]
[1758283642787,6.7,241.71,241.62,5.60625021]
[1758283643088,6.7,241.7,241.63,6.56]
[1758283643590,6.7,241.7,241.62,39.54]
[1758283644292,10.4224,241.65,241.57,3.7236]
[1758283644592,10.4224,241.65,241.61,65.44]
[1758283644792,3.7224,241.65,241.62,6.56]
[1758283645392,3.7221,241.68,241.62,6.56]
[1758283646090,3.7222,241.67,241.62,6.56]
[1758283646395,10.4222,241.67,241.61,58.88]
[1758283646596,10.4222,241.67,241.61,65.44]
[1758283647285,6.7,241.67,241.61,65.44]
[1758283648486,6.7,241.67,241.61,6.56]
[1758283648682,6.7,241.67,241.62,101.0]
[1758283648890,6.7,241.67,241.63,6.76]
[1758283651090,6.7,241.67,241.62,101.0]
[1758283651291,6.7,241.67,241.63,6.76]
[1758283651487,6.7,241.67,241.62,101.0]
[1758283651692,6.7,241.67,241.63,6.76]
[1758283651991,6.7,241.67,241.62,101.0]
[1758283652193,6.7,241.67,241.63,6.76]
[1758283652689,6.7,241.67,241.62,101.0]
[1758283652896,7.06,241.75,241.63,6.76]
[1758283653490,7.06,241.75,241.7,6.76]
[1758283653687,3.7204,241.78,241.71,6.76]
[1758283654498,7.06,241.79,241.71,10.4814]
[1758283655290,7.06,241.79,241.72,6.76]
[1758283656995,3.72,241.81,241.73,104.7811]
[1758283657389,7.06,241.83,241.74,6.76]
[1758283658295,7.06,241.83,241.74,10.4809]
[1758283659292,7.06,241.83,241.74,3.7209]
[1758283659499,7.06,241.83,241.75,6.76]
[1758283660604,10.7798,241.83,241.76,101.02]
[1758283660792,7.06,241.83,241.75,6.76]
[1758283661103,7.06,241.83,241.76,101.02]
[1758283661805,10.7797,241.83,241.76,101.02]
[1758283662506,3.7193,241.86,241.77,6.76]
[1758283663706,3.7195,241.84,241.77,6.76]
[1758283664501,3.7195,241.84,241.78,19.2]
[1758283664802,3.7191,241.87,241.79,6.76]
[1758283665908,3.7191,241.87,241.8,34.12]
[1758283667405,7.06,241.89,241.8,34.12]
[1758283667406,10.7794,241.85,241.8,6.76]
[1758283667599,57.8575,241.85,241.66,4.63133619]
[1758283667806,8.94345021,241.83,241.68,6.76]
[1758283668005,3.7202,241.79,241.69,6.76]
[1758283668209,3.7202,241.79,241.71,6.76]
[1758283668806,3.7198,241.82,241.71,6.76]
[1758283669809,3.7198,241.82,241.73,3.7212]
[1758283670011,3.7198,241.82,241.74,6.76]
[1758283670402,59.73165021,241.89,241.72,1.88345021]
[1758283670403,3.7195,241.84,241.72,1.88345021]
[1758283670609,3.7195,241.84,241.73,6.76]
[1758283670808,7.06,241.87,241.73,6.76]
[1758283671007,3.7192,241.86,241.79,6.76]
[1758283671208,3.7192,241.86,241.8,76.14]
[1758283671809,3.7192,241.86,241.81,6.76]
[1758283672507,3.7192,241.86,241.8,76.14]
[1758283672713,3.7192,241.86,241.81,6.76]
[1758283673313,3.7192,241.86,241.8,76.14]
[1758283673815,3.7192,241.86,241.81,6.76]
[1758283674115,3.7192,241.86,241.8,82.9]
[1758283675410,3.7192,241.86,241.8,76.14]
[1758283676313,3.7192,241.86,241.81,6.76]
[1758283676508,3.7192,241.86,241.81,7.06]
[1758283677012,3.7192,241.86,241.8,76.14]
[1758283678016,3.7192,241.86,241.8,83.2]
[1758283680219,3.7192,241.86,241.8,7.06]
[1758283680420,6.72,241.85,241.76,6.53]
[1758283680921,3.7204,241.79,241.72,107.63]
[1758283681526,6.72,241.8,241.72,107.63]
[1758283682728,3.7203,241.79,241.72,107.63]
[1758283682916,3.7203,241.79,241.73,6.53]
[1758283683123,3.72,241.81,241.73,6.53]
[1758283683827,3.7203,241.79,241.73,6.53]
[1758283685627,1.20452734,241.84,241.73,7.73452734]
[1758283685824,3.7201,241.8,241.73,7.73452734]
[1758283686220,3.7201,241.8,241.73,6.53]
[1758283686424,3.7201,241.8,241.74,101.12]
[1758283686826,3.7201,241.8,241.75,101.1]
[1758283687026,6.72,241.78,241.73,6.53]
[1758283687223,6.72,241.78,241.74,101.1]
[1758283687732,3.7205,241.78,241.74,101.1]
[1758283687927,6.72,241.77,241.74,101.1]
[1758283688124,1.20452734,241.78,241.71,312.68]
[1758283688331,1.20452734,241.75,241.68,6.53]
[1758283688627,1.20452734,241.75,241.69,29.24]
[1758283688930,6.72,241.74,241.68,59.77]
[1758283689322,6.72,241.72,241.64,6.53]
[1758283689533,7.92452734,241.72,241.65,91.24]
[1758283690033,10.4418,241.69,241.65,91.24]
[1758283690226,1.20452734,241.69,241.59,6.53]
[1758283690423,7.92452734,241.69,241.6,101.18]
[1758283691834,3.7221,241.67,241.6,101.18]
[1758283692032,7.92452734,241.69,241.61,101.18]
[1758283692234,7.92452734,241.69,241.62,6.53]
[1758283692631,11.64632734,241.69,241.62,6.53]
[1758283692933,6.72,241.69,241.62,6.53]
[1758283693134,6.72,241.74,241.62,6.53]
[1758283693324,1.20452734,241.72,241.62,6.53]
[1758283693933,4.92592734,241.72,241.62,6.53]
[1758283694133,1.20452734,241.72,241.62,6.53]
[1758283694735,6.72,241.71,241.63,101.16]
[1758283695836,3.7216,241.7,241.63,101.16]
[1758283696232,3.7216,241.7,241.62,6.53]
[1758283696429,3.7216,241.7,241.62,107.65]
[1758283697834,3.7216,241.7,241.65,1.20452734]
[1758283698033,3.7216,241.7,241.66,6.53]
[1758283698437,3.7216,241.7,241.65,1.20452734]
[1758283699138,3.7216,241.7,241.66,6.53]
[1758283700036,10.4416,241.7,241.66,6.53]
[1758283701737,6.72,241.7,241.66,6.53]
[1758283701931,6.72,241.7,241.65,1.20452734]
[1758283702436,6.72,241.76,241.66,6.53]
[1758283703030,6.72,241.76,241.69,6.53]
[1758283703334,6.72,241.76,241.71,1.20452734]
[1758283703539,57.8688,241.8,241.71,7.73452734]
[1758283703540,6.72,241.79,241.71,7.73452734]
[1758283704841,3.721,241.75,241.71,7.73452734]
[1758283705139,3.721,241.75,241.72,6.53]
[1758283705335,3.721,241.75,241.74,1.20452734]
[1758283707335,10.4405,241.78,241.74,1.20452734]
[1758283707534,10.4405,241.78,241.74,7.73452734]
[1758283708235,6.75,241.81,241.77,7.89452734]
[1758283708441,6.75,241.81,241.78,6.69]
[1758283711142,6.75,241.81,241.71,6.69]
[1758283711337,6.75,241.81,241.71,7.89452734]
[1758283711540,6.75,241.79,241.71,7.89452734]
[1758283712046,6.75,241.74,241.71,1.20452734]
[1758283712646,3.7209,241.75,241.71,7.89452734]
[1758283712945,10.4709,241.75,241.71,7.89452734]
[1758283713138,6.75,241.74,241.71,7.89452734]
[1758283713341,6.75,241.74,241.71,1.20452734]
[1758283714041,3.7209,241.75,241.71,1.20452734]
[1758283714247,3.7209,241.75,241.72,6.69]
[1758283715346,3.7204,241.79,241.74,1.20452734]
[1758283715747,6.75,241.86,241.77,1.20452734]
[1758283716640,3.7199,241.82,241.77,1.20452734]
[1758283716838,10.4699,241.82,241.78,6.69]
[1758283717240,6.75,241.86,241.78,6.69]
[1758283717445,6.75,241.86,241.77,1.20452734]
[1758283718950,10.4701,241.81,241.77,1.20452734]
[1758283719950,6.75,241.8,241.77,1.20452734]
[1758283720452,6.75,241.8,241.77,7.89452734]
[1758283720949,10.4696,241.84,241.78,6.69]
[1758283721147,6.75,241.83,241.8,1.20452734]
[1758283721646,3.7196,241.84,241.8,1.20452734]
[1758283722042,6.75,241.83,241.8,1.20452734]
[1758283722252,3.7196,241.84,241.8,1.20452734]
[1758283722453,3.7198,241.82,241.8,1.20452734]
[1758283722649,6.75,241.81,241.8,1.20452734]
[1758283724848,57.8508,241.88,241.68,6.69]
[1758283724849,64.6068,241.85,241.68,6.69]